fUST/lending_fUST_20251004
["ID","MTS","AMOUNT","RATE_DAILY","PERIOD"]
[388953052,1759537845870,-500.0,0.00028988,7]
[388953053,1759537845878,-2586.33,0.00028988,9]
[388953054,1759537845889,-500.0,0.00028988,9]
[388953055,1759537845898,-794.63,0.00028988,9]
[388953056,1759537845907,-1289.0,0.00028988,9]
[388953057,1759537845917,-500.0,0.00028988,9]
[388953058,1759537845926,-827.17,0.00028988,9]
[388953059,1759537845936,-2526.65,0.00028988,9]
[388953060,1759537845945,-603.06,0.00028988,9]
[388953061,1759537845955,-4239.45,0.00028988,9]
[388953062,1759537845965,-500.0,0.00028988,9]
[388953063,1759537845976,-500.0,0.00028988,9]
[388953064,1759537845986,-555.02,0.00028988,9]
[388953065,1759537845996,-500.0,0.00028988,9]
[388953066,1759537846006,-463.0152943,0.00028988,9]
[388953067,1759537846015,-2861.94,0.00028988,9]
[388953068,1759537846024,-500.0,0.00028988,9]
[388953069,1759537846034,-500.0,0.00028989,16]
[388953070,1759537846044,-500.0,0.00028989,16]
[388953071,1759537846054,-500.0,0.00028989,16]
[388953072,1759537846063,-1150.89,0.00028989,16]
[388953073,1759537846073,-1150.89,0.00028989,16]
[388953074,1759537846083,-1150.89,0.00028989,16]
[388953075,1759537846092,-725.94,0.00028989,9]
[388953076,1759537846102,-725.94,0.00028989,9]
[388953077,1759537846111,-725.94,0.00028989,9]
[388953078,1759537846120,-141.73460825,0.00028989,2]
[388953079,1759537846434,-1710.98539175,0.00028989,2]
[388953080,1759537846444,-151.0,0.0002899,7]
[388953081,1759537846454,-151.0,0.0002899,7]
[388953082,1759537846464,-151.0,0.0002899,7]
[388953083,1759537846473,-151.0,0.0002899,7]
[388953084,1759537846482,-151.0,0.0002899,7]
[388953085,1759537846491,-151.0,0.0002899,7]
[388953086,1759537846499,-151.0,0.0002899,7]
[388953087,1759537846509,-151.0,0.0002899,7]
[388953088,1759537846518,-151.0,0.0002899,7]
[388953089,1759537846527,-203.111131,0.0002899,7]
[388953090,1759537846536,-151.0,0.0002899,7]
[388953091,1759537846546,-151.0,0.0002899,7]
[388953092,1759537846555,-151.0,0.0002899,7]
[388953093,1759537846564,-151.0,0.0002899,7]
[388953094,1759537846574,-500.0,0.0002899,7]
[388953095,1759537846583,-151.0,0.0002899,7]
[388953096,1759537846593,-151.0,0.0002899,7]
[388953097,1759537846602,-151.0,0.0002899,7]
[388953098,1759537846612,-151.0,0.0002899,7]
[388953099,1759537846622,-151.0,0.0002899,7]
[388953100,1759537846631,-151.0,0.0002899,7]
[388953101,1759537846640,-151.0,0.0002899,7]
[388953102,1759537846648,-151.0,0.0002899,7]
[388953103,1759537846658,-151.0,0.0002899,7]
[388953104,1759537846667,-151.0,0.0002899,7]
[388953105,1759537846676,-151.0,0.0002899,7]
[388953106,1759537846685,-151.0,0.0002899,7]
[388953107,1759537846694,-151.0,0.0002899,7]
[388953108,1759537846703,-252.03890051,0.0002899,7]
[388953109,1759537846712,-621.0,0.0002899,7]
[388953110,1759537846722,-151.0,0.0002899,7]
[388953111,1759537846731,-151.0,0.0002899,7]
[388953112,1759537846740,-151.0,0.0002899,7]
[388953113,1759537846874,-151.0,0.0002899,7]
[388953114,1759537846883,-151.0,0.0002899,7]
[388953115,1759537846892,-151.0,0.0002899,7]
[388953116,1759537846902,-500.0,0.0002899,2]
[388953117,1759537846911,-151.0,0.0002899,2]
[388953118,1759537846924,-151.0,0.0002899,7]
[388953119,1759537846933,-151.0,0.0002899,7]
[388953120,1759537846943,-500.0,0.0002899,7]
[388953121,1759537846955,-151.0,0.00029,19]
[388953122,1759537846965,-151.0,0.00029,17]
[388953123,1759537846975,-1032.49396482,0.00029002,2]
[388953124,1759537846984,-305.1244069,0.0002901,5]
[388953125,1759537846993,-500.0,0.00029041,9]
[388953126,1759537847003,-500.0,0.00029041,15]
[388953127,1759537847012,-500.0,0.00029041,15]
[388953128,1759537847021,-500.0,0.00029041,15]
[388953129,1759537847031,-500.0,0.00029041,15]
[388953130,1759537847040,-500.0,0.00029041,15]
[388953131,1759537847050,-500.0,0.00029041,15]
[388953132,1759537847058,-922.77,0.00029041,9]
[388953133,1759537847068,-500.0,0.00029041,9]
[388953134,1759537847078,-500.0,0.00029041,9]
[388953135,1759537847087,-1358.88,0.00029041,9]
[388953136,1759537847097,-2198.89,0.00029041,9]
[388953137,1759537847107,-2045.76,0.00029041,9]
[388953138,1759537847116,-1353.96,0.00029041,9]
[388953139,1759537847126,-500.0,0.00029041,9]
[388953140,1759537847136,-998.09,0.00029041,9]
[388953141,1759537847145,-500.0,0.00029041,9]
[388953142,1759537847155,-606.73185912,0.0002905,2]
[388953143,1759537847165,-500.0,0.00029066,10]
[388953144,1759537847174,-151.0,0.000291,14]
[388953145,1759537847184,-151.0,0.000291,18]
[388953146,1759537847193,-248.658033,0.00029128,2]
[388953147,1759537847203,-500.0,0.00029153,9]
[388953148,1759537847213,-500.0,0.00029153,9]
[388953149,1759537847223,-552.41,0.00029153,9]
[388953150,1759537847232,-500.0,0.00029153,9]
[388953151,1759537847242,-151.0,0.00029163,2]
[388953152,1759537847252,-151.0,0.00029163,2]
[388953153,1759537847261,-151.0,0.00029163,2]
[388953154,1759537847271,-159.72889547,0.00029163,2]
[388953155,1759537847281,-151.0,0.00029163,2]
[388953156,1759537847291,-500.0,0.00029163,9]
[388953157,1759537847300,-500.0,0.00029163,9]
[388953158,1759537847309,-500.0,0.00029163,9]
[388953159,1759537847319,-577.72,0.00029163,9]
[388953160,1759537847328,-500.0,0.00029163,9]
[388953161,1759537847338,-500.0,0.00029163,9]
[388953162,1759537847348,-500.0,0.00029163,9]
[388953163,1759537847357,-7656.7,0.00029163,9]
[388953164,1759537847367,-2254.67,0.00029163,9]
[388953165,1759537847376,-878.37,0.00029163,9]
[388953166,1759537847391,-500.0,0.00029163,9]
[388953167,1759537847400,-500.0,0.00029163,9]
[388953168,1759537847410,-500.0,0.00029163,9]
[388953169,1759537847419,-790.26,0.00029163,9]
[388953170,1759537847428,-6140.07,0.00029163,9]
[388953171,1759537847438,-2581.7,0.00029163,9]
[388953172,1759537847447,-500.0,0.00029163,9]
[388953173,1759537847458,-1369.68,0.00029163,9]
[388953174,1759537847469,-2418.18,0.00029163,9]
[388953175,1759537847479,-1677.58,0.00029163,9]
[388953176,1759537847488,-875.78,0.00029163,9]
[388953177,1759537847498,-1986.71,0.00029163,9]
[388953178,1759537847507,-500.0,0.00029164,10]
[388953179,1759537847516,-1166.40842565,0.000292,2]
[388953180,1759537847525,-151.0,0.000292,19]
[388953181,1759537847535,-1437.29237292,0.00029231,2]
[388953182,1759537847544,-500.0,0.00029261,9]
[388953183,1759537847554,-500.0,0.00029261,9]
[388953184,1759537847566,-500.0,0.00029262,9]
[388953185,1759537847579,-468.4073342,0.00029262,9]
[388953186,1759537847588,-500.0,0.00029262,9]
[388953187,1759537847598,-2491.51,0.00029262,9]
[388953188,1759537847607,-703.47,0.00029262,9]
[388953189,1759537847616,-500.0,0.00029262,9]
[388953190,1759537847625,-500.0,0.00029262,9]
[388953191,1759537847635,-500.0,0.00029262,9]
[388953192,1759537847644,-151.0,0.00029262,7]
[388953193,1759537847654,-151.0,0.00029262,7]
[388953194,1759537847663,-151.0,0.00029262,7]
[388953195,1759537847673,-500.0,0.00029262,9]
[388953196,1759537847682,-1119.32,0.00029262,9]
[388953197,1759537847691,-556.23,0.00029262,9]
[388953198,1759537847700,-2138.48,0.00029262,9]
[388953199,1759537847710,-1549.94572586,0.00029262,2]
[388953200,1759537847720,-500.0,0.00029262,9]
[388953201,1759537847729,-500.0,0.00029262,9]
[388953202,1759537847739,-2120.65,0.00029262,9]
[388953203,1759537847748,-608.92,0.00029262,9]
[388953204,1759537847758,-729.57,0.00029262,9]
[388953205,1759537847767,-500.0,0.00029262,9]
[388953206,1759537847776,-1916.71,0.00029262,9]
[388953207,1759537847786,-598.16,0.00029262,9]
[388953208,1759537847797,-580.92,0.00029262,9]
[388953209,1759537847806,-4695.36,0.00029262,9]
[388953210,1759537847816,-502.38,0.00029262,9]
[388953211,1759537847825,-580.14,0.00029262,9]
[388953212,1759537847835,-877.57,0.00029262,9]
[388953213,1759537847844,-2545.33,0.00029262,9]
[388953214,1759537847854,-527.04,0.00029262,9]
[388953215,1759537847864,-1277.67,0.00029262,9]
[388953216,1759537847873,-500.0,0.00029262,9]
[388953217,1759537847882,-971.33,0.00029262,9]
[388953218,1759537847892,-1460.32,0.00029262,9]
[388953219,1759537847901,-747.65,0.00029262,9]
[388953220,1759537847911,-500.0,0.00029262,7]
[388953221,1759537847920,-2586.33,0.00029262,9]
[388953222,1759537847929,-500.0,0.00029262,9]
[388953223,1759537847939,-794.63,0.00029262,9]
[388953224,1759537847948,-1289.0,0.00029262,9]
[388953225,1759537847957,-500.0,0.00029262,9]
[388953226,1759537847966,-827.17,0.00029262,9]
[388953227,1759537847975,-2526.65,0.00029262,9]
[388953228,1759537847985,-603.06,0.00029262,9]
[388953229,1759537847994,-4239.45,0.00029262,9]
[388953230,1759537848003,-500.0,0.00029262,9]
[388953231,1759537848012,-500.0,0.00029262,9]
[388953232,1759537848022,-555.02,0.00029262,9]
[388953233,1759537848031,-500.0,0.00029262,9]
[388953234,1759537848040,-2861.94,0.00029262,9]
[388953235,1759537848049,-500.0,0.00029262,9]
[388953236,1759537848059,-151.0,0.00029264,7]
[388953237,1759537848068,-501.31099038,0.00029264,7]
[388953238,1759537848077,-151.96779539,0.00029264,7]
[388953239,1759537848086,-151.0,0.00029264,7]
[388953240,1759537848096,-151.0,0.00029264,7]
[388953241,1759537848105,-151.41612214,0.00029264,7]
[388953242,1759537848116,-151.0,0.00029264,7]
[388953243,1759537848125,-621.0,0.00029264,7]
[388953244,1759537848135,-151.0,0.00029264,7]
[388953245,1759537848144,-151.0,0.00029264,7]
[388953246,1759537848154,-151.0,0.00029264,7]
[388953247,1759537848163,-500.0,0.00029264,2]
[388953248,1759537848173,-151.0,0.00029264,7]
[388953249,1759537848182,-151.0,0.00029264,7]
[388953250,1759537848191,-500.0,0.00029264,7]
[388953251,1759537848201,-165.3995,0.00029285,4]
[388953252,1759537848210,-1608.98,0.00029299,16]
[388953253,1759537848220,-1608.98,0.00029299,16]
[388953254,1759537848229,-1608.98,0.00029299,16]
[388953255,1759537848238,-1608.98,0.00029299,16]
[388953256,1759537848248,-608.69,0.00029299,9]
[388953257,1759537848257,-500.0,0.00029299,9]
[388953258,1759537848266,-484.71467478,0.00029299,9]
[388953259,1759537848275,-500.0,0.00029299,9]
[388953260,1759537848284,-500.0,0.00029299,9]
[388953261,1759537848294,-500.0,0.00029299,9]
[388953262,1759537848304,-1031.72,0.00029299,9]
[388953263,1759537848314,-500.0,0.00029299,9]
[388953264,1759537848323,-3683.69,0.00029299,9]
[388953265,1759537848333,-890.2,0.00029299,9]
[388953266,1759537848343,-500.0,0.00029299,9]
[388953267,1759537848352,-3353.53,0.00029299,9]
[388953268,1759537848362,-500.0,0.00029299,9]
[388953269,1759537848371,-151.0,0.000293,16]
[388953270,1759537848382,-151.0,0.000293,17]
[388953271,1759537848393,-1496.01,0.000293,2]
[388953272,1759537848510,-500.0,0.00029315,9]
[388953273,1759537848520,-922.77,0.00029315,9]
[388953274,1759537848530,-500.0,0.00029315,9]
[388953275,1759537848540,-500.0,0.00029315,9]
[388953276,1759537848549,-1358.88,0.00029315,9]
[388953277,1759537848559,-2198.89,0.00029315,9]
[388953278,1759537848569,-2045.76,0.00029315,9]
[388953279,1759537848579,-1353.96,0.00029315,9]
[388953280,1759537848588,-500.0,0.00029315,9]
[388953281,1759537848598,-998.09,0.00029315,9]
[388953282,1759537848608,-500.0,0.00029315,9]
[388953283,1759537848619,-500.0,0.0002934,10]
[388953284,1759537848629,-306.0,0.00029342,30]
[388953285,1759537848639,-440.0,0.00029344,2]
[388953286,1759537848648,-151.0,0.00029346,7]
[388953287,1759537848658,-151.0,0.00029346,7]
[388953288,1759537848667,-151.0,0.00029346,7]
[388953289,1759537848677,-1041.66666667,0.00029346,3]
[388953290,1759537848687,-5352.84,0.00029346,9]
[388953291,1759537848697,-500.0,0.00029346,9]
[388953292,1759537848706,-1796.78,0.00029346,9]
[388953293,1759537848715,-5433.85,0.00029346,9]
[388953294,1759537848725,-911.35,0.00029346,9]
[388953295,1759537848734,-2964.56,0.00029346,9]
[388953296,1759537848743,-1049.43,0.00029346,9]
[388953297,1759537848753,-4928.86,0.00029346,9]
[388953298,1759537848762,-500.0,0.00029346,9]
[388953299,1759537848771,-2127.45,0.00029346,9]
[388953300,1759537848780,-151.0,0.00029347,7]
[388953301,1759537848789,-500.0,0.00029359,16]
[388953302,1759537848798,-1150.89,0.00029359,16]
[388953303,1759537848808,-725.94,0.00029359,9]
[388953304,1759537848817,-500.0,0.00029359,15]
[388953305,1759537848827,-206.0,0.00029368,2]
[388953306,1759537848836,-500.0,0.00029389,16]
[388953307,1759537848845,-614.04666891,0.00029389,9]
[388953308,1759537848854,-638.25,0.00029389,9]
[388953309,1759537848865,-413.45760321,0.00029389,9]
[388953310,1759537848874,-480.90206425,0.00029389,9]
[388953311,1759537848884,-1545.7,0.00029389,9]
[388953312,1759537848893,-652.08,0.00029389,9]
[388953313,1759537848903,-486.71250829,0.00029389,9]
[388953314,1759537848912,-500.0,0.00029389,9]
[388953315,1759537848922,-500.0,0.00029389,9]
[388953316,1759537848931,-1501.35,0.00029389,9]
[388953317,1759537848940,-500.0,0.00029389,9]
[388953318,1759537848950,-500.0,0.00029389,9]
[388953319,1759537848959,-3913.63,0.00029389,9]
[388953320,1759537848968,-602.07,0.00029389,9]
[388953321,1759537848977,-505.80320822,0.00029389,9]
[388953322,1759537848986,-2640.67,0.00029389,9]
[388953323,1759537848996,-500.0,0.00029389,9]
[388953324,1759537849005,-2136.49,0.00029389,9]
[388953325,1759537849014,-500.0,0.00029389,9]
[388953326,1759537849023,-500.0,0.00029389,9]
[388953327,1759537849032,-1601.41,0.00029389,9]
[388953328,1759537849041,-500.0,0.00029389,9]
[388953329,1759537849051,-500.0,0.00029389,9]
[388953330,1759537849061,-500.0,0.00029389,9]
[388953331,1759537849069,-500.0,0.00029389,9]
[388953332,1759537849080,-3941.35,0.00029389,9]
[388953333,1759537849089,-1631.73,0.00029389,9]
[388953334,1759537849098,-802.34,0.00029389,9]
[388953335,1759537849107,-941.9,0.00029389,9]
[388953336,1759537849116,-500.0,0.00029389,9]
[388953337,1759537849126,-500.0,0.00029389,9]
[388953338,1759537849135,-500.0,0.00029389,9]
[388953339,1759537849144,-685.64,0.00029389,9]
[388953340,1759537849154,-500.0,0.00029389,9]
[388953341,1759537849164,-500.0,0.00029389,9]
[388953342,1759537849173,-500.0,0.00029389,9]
[388953343,1759537849182,-1431.85,0.00029389,9]
[388953344,1759537849191,-500.0,0.00029389,9]
[388953345,1759537849212,-3131.64,0.00029389,30]
[388953346,1759537849231,-151.0,0.000294,16]
[388953347,1759537849250,-151.0,0.000294,20]
[388953348,1759537849270,-1000.0,0.00029421,5]
[388953349,1759537849289,-500.0,0.00029421,5]
[388953350,1759537849305,-1000.0,0.00029421,5]
[388953351,1759537849324,-500.0,0.00029421,5]
[388953352,1759537849338,-1000.0,0.00029421,2]
[388953353,1759537849355,-1000.0,0.00029421,5]
[388953354,1759537849374,-500.0,0.00029421,5]
[388953355,1759537849395,-270.66255595,0.00029421,5]
[388953356,1759537849408,-500.0,0.00029421,5]
[388953357,1759537849429,-1000.0,0.00029421,5]
[388953358,1759537849442,-437.32903283,0.00029421,5]
[388953359,1759537849459,-1000.0,0.00029421,5]
[388953360,1759537849473,-1000.0,0.00029421,2]
[388953361,1759537849487,-1000.0,0.00029421,5]
[388953362,1759537849502,-1000.0,0.00029421,3]
[388953363,1759537849520,-1000.0,0.00029421,5]
[388953364,1759537849535,-506.42210844,0.00029421,5]
[388953365,1759537849550,-1000.0,0.00029421,5]
[388953366,1759537849563,-1000.0,0.00029421,5]
[388953367,1759537849577,-502.14044378,0.00029421,5]
[388953368,1759537849592,-1000.0,0.00029421,5]
[388953369,1759537849607,-257.0,0.00029421,2]
[388953370,1759537849623,-500.0,0.00029421,16]
[388953371,1759537849637,-500.0,0.00029421,16]
[388953372,1759537849652,-1150.89,0.00029421,16]
[388953373,1759537849667,-1150.89,0.00029421,16]
[388953374,1759537849681,-151.0,0.00029421,7]
[388953375,1759537849697,-151.0,0.00029421,7]
[388953376,1759537849712,-725.94,0.00029421,9]
[388953377,1759537849726,-725.94,0.00029421,9]
[388953378,1759537849741,-500.0,0.00029421,15]
[388953379,1759537849756,-500.0,0.00029421,15]
[388953380,1759537849770,-151.0,0.00029422,7]
[388953381,1759537849785,-151.0,0.00029422,7]
[388953382,1759537849800,-151.0,0.00029422,7]
[388953383,1759537849815,-151.0,0.00029422,7]
[388953384,1759537849831,-151.0,0.00029422,7]
[388953385,1759537849846,-151.0,0.00029422,7]
[388953386,1759537849860,-151.0,0.00029422,7]
[388953387,1759537849875,-151.0,0.00029422,7]
[388953388,1759537849889,-151.0,0.00029422,7]
[388953389,1759537849904,-151.0,0.00029422,7]
[388953390,1759537849919,-151.0,0.00029422,7]
[388953391,1759537849933,-151.0,0.00029422,7]
[388953392,1759537849947,-199.695225,0.00029422,7]
[388953393,1759537849962,-1176.6,0.00029422,9]
[388953394,1759537849977,-500.0,0.00029422,9]
[388953395,1759537849991,-257.62203739,0.00029422,9]
[388953396,1759537850005,-500.0,0.00029422,9]
[388953397,1759537850019,-657.41,0.00029422,9]
[388953398,1759537850033,-486.70486829,0.00029422,9]
[388953399,1759537850048,-519.06,0.00029422,9]
[388953400,1759537850062,-155.0,0.00029424,2]
[388953401,1759537850076,-151.0,0.00029425,7]
[388953402,1759537850090,-151.0,0.00029425,7]
[388953403,1759537850104,-151.0,0.00029425,7]
[388953404,1759537850117,-151.0,0.00029425,7]
[388953405,1759537850127,-151.0,0.00029425,7]
[388953406,1759537850137,-151.0,0.00029425,7]
[388953407,1759537850147,-151.0,0.00029425,7]
[388953408,1759537850156,-151.0,0.00029425,7]
[388953409,1759537850166,-151.0,0.00029425,7]
[388953410,1759537850177,-151.0,0.00029425,7]
[388953411,1759537850186,-151.0,0.00029425,7]
[388953412,1759537850196,-500.0,0.00029427,9]
[388953413,1759537850205,-500.0,0.00029427,9]
[388953414,1759537850215,-552.41,0.00029427,9]
[388953415,1759537850224,-500.0,0.00029427,9]
[388953416,1759537850234,-151.0,0.00029431,7]
[388953417,1759537850244,-151.0,0.00029431,7]
[388953418,1759537850479,-151.0,0.00029431,7]
[388953419,1759537850510,-151.0,0.00029431,7]
[388953420,1759537850523,-500.0,0.00029431,16]
[388953421,1759537850533,-500.0,0.00029431,16]
[388953422,1759537850543,-397.72481558,0.00029431,16]
[388953423,1759537850553,-400.28530883,0.00029431,16]
[388953424,1759537850563,-486.13412624,0.00029431,16]
[388953425,1759537850573,-500.0,0.00029431,7]
[388953426,1759537850583,-500.0,0.00029431,7]
[388953427,1759537850592,-1559.25,0.00029431,16]
[388953428,1759537850602,-500.0,0.00029431,7]
[388953429,1759537850612,-1559.25,0.00029431,16]
[388953430,1759537850622,-500.0,0.00029431,7]
[388953431,1759537850630,-1559.25,0.00029431,16]
[388953432,1759537850638,-1559.25,0.00029431,16]
[388953433,1759537850648,-151.0,0.00029431,7]
[388953434,1759537850657,-500.0,0.00029431,16]
[388953435,1759537850666,-500.0,0.00029431,16]
[388953436,1759537850676,-500.0,0.00029431,16]
[388953437,1759537850685,-500.0,0.00029431,16]
[388953438,1759537850695,-500.0,0.00029431,9]
[388953439,1759537850705,-500.0,0.00029431,9]
[388953440,1759537850714,-500.0,0.00029431,2]
[388953441,1759537850725,-500.0,0.00029431,9]
[388953442,1759537850735,-500.0,0.00029431,9]
[388953443,1759537850745,-500.0,0.00029431,9]
[388953444,1759537850755,-500.0,0.00029431,9]
[388953445,1759537850764,-500.0,0.00029431,9]
[388953446,1759537850774,-500.0,0.00029431,9]
[388953447,1759537850784,-500.0,0.00029431,9]
[388953448,1759537850793,-500.0,0.00029431,9]
[388953449,1759537850803,-500.0,0.00029431,9]
[388953450,1759537850812,-500.0,0.00029431,9]
[388953451,1759537850822,-500.0,0.00029431,9]
[388953452,1759537850832,-500.0,0.00029431,9]
[388953453,1759537850841,-500.0,0.00029431,9]
[388953454,1759537850851,-500.0,0.00029431,9]
[388953455,1759537850860,-457.01935278,0.00029431,9]
[388953456,1759537850870,-570.71936132,0.00029431,9]
[388953457,1759537850879,-500.0,0.00029431,9]
[388953458,1759537850889,-500.0,0.00029431,9]
[388953459,1759537850898,-500.0,0.00029431,9]
[388953460,1759537850907,-500.0,0.00029431,9]
[388953461,1759537850917,-500.0,0.00029431,9]
[388953462,1759537850927,-500.0,0.00029431,9]
[388953463,1759537850936,-500.0,0.00029431,9]
[388953464,1759537850945,-500.0,0.00029431,9]
[388953465,1759537850955,-500.0,0.00029431,9]
[388953466,1759537850964,-500.0,0.00029431,9]
[388953467,1759537850974,-500.0,0.00029431,9]
[388953468,1759537850983,-1889.43,0.00029431,9]
[388953469,1759537850992,-500.0,0.00029431,9]
[388953470,1759537851002,-500.0,0.00029431,9]
[388953471,1759537851011,-500.0,0.00029431,2]
[388953472,1759537851021,-500.0,0.00029431,2]
[388953473,1759537851032,-500.0,0.00029431,2]
[388953474,1759537851042,-500.0,0.00029431,2]
[388953475,1759537851051,-500.0,0.00029431,9]
[388953476,1759537851061,-500.0,0.00029431,9]
[388953477,1759537851075,-500.0,0.00029431,9]
[388953478,1759537851084,-821.32,0.00029431,9]
[388953479,1759537851095,-1487.72,0.00029431,9]
[388953480,1759537851104,-3801.25,0.00029431,9]
[388953481,1759537851117,-500.0,0.00029431,9]
[388953482,1759537851128,-500.0,0.00029431,9]
[388953483,1759537851140,-500.0,0.00029431,9]
[388953484,1759537851153,-1384.86,0.00029431,9]
[388953485,1759537851162,-500.0,0.00029431,9]
[388953486,1759537851172,-500.0,0.00029431,9]
[388953487,1759537851181,-1816.94,0.00029431,9]
[388953488,1759537851191,-500.0,0.00029431,9]
[388953489,1759537851200,-500.0,0.00029431,9]
[388953490,1759537851210,-721.24,0.00029431,9]
[388953491,1759537851219,-500.0,0.00029431,9]
[388953492,1759537851229,-500.0,0.00029431,9]
[388953493,1759537851239,-500.0,0.00029431,9]
[388953494,1759537851248,-500.0,0.00029431,9]
[388953495,1759537851258,-481.62369332,0.00029431,9]
[388953496,1759537851268,-883.46,0.00029431,9]
[388953497,1759537851278,-500.0,0.00029431,9]
[388953498,1759537851287,-500.0,0.00029431,9]
[388953499,1759537851297,-500.0,0.00029431,9]
[388953500,1759537851307,-500.0,0.00029431,9]
[388953501,1759537851316,-486.01601115,0.00029431,9]
[388953502,1759537851326,-484.40989375,0.00029431,9]
[388953503,1759537851335,-705.31,0.00029431,9]
[388953504,1759537851346,-500.0,0.00029431,2]
[388953505,1759537851356,-453.71279362,0.00029431,9]
[388953506,1759537851366,-500.0,0.00029431,9]
[388953507,1759537851376,-500.0,0.00029431,9]
[388953508,1759537851390,-500.0,0.00029431,9]
[388953509,1759537851400,-1169.94,0.00029431,9]
[388953510,1759537851410,-2773.53,0.00029431,9]
[388953511,1759537851420,-500.0,0.00029431,9]
[388953512,1759537851431,-1419.29,0.00029431,9]
[388953513,1759537851440,-1125.31,0.00029431,9]
[388953514,1759537851450,-454.77118135,0.00029431,9]
[388953515,1759537851459,-1635.07,0.00029431,9]
[388953516,1759537851470,-500.0,0.00029431,9]
[388953517,1759537851479,-1523.43,0.00029431,9]
[388953518,1759537851488,-500.0,0.00029431,9]
[388953519,1759537851498,-500.0,0.00029431,9]
[388953520,1759537851508,-500.0,0.00029431,9]
[388953521,1759537851518,-500.0,0.00029431,9]
[388953522,1759537851527,-485.02208719,0.00029431,9]
[388953523,1759537851536,-500.0,0.00029431,9]
[388953524,1759537851546,-500.0,0.00029431,9]
[388953525,1759537851556,-1640.75,0.00029431,9]
[388953526,1759537851565,-500.0,0.00029431,9]
[388953527,1759537851575,-1378.93,0.00029431,9]
[388953528,1759537851585,-500.0,0.00029431,9]
[388953529,1759537851594,-1940.7,0.00029431,9]
[388953530,1759537851603,-500.0,0.00029431,9]
[388953531,1759537851613,-483.45517035,0.00029431,9]
[388953532,1759537851622,-500.0,0.00029431,9]
[388953533,1759537851631,-500.0,0.00029431,9]
[388953534,1759537851641,-500.0,0.00029431,9]
[388953535,1759537851650,-500.0,0.00029431,9]
[388953536,1759537851659,-542.43,0.00029431,9]
[388953537,1759537851668,-1163.9,0.00029431,9]
[388953538,1759537851678,-500.0,0.00029431,9]
[388953539,1759537851688,-500.0,0.00029431,9]
[388953540,1759537851698,-500.0,0.00029431,9]
[388953541,1759537851707,-500.0,0.00029431,9]
[388953542,1759537851717,-500.0,0.00029431,9]
[388953543,1759537851726,-500.0,0.00029431,9]
[388953544,1759537851735,-9305.04,0.00029431,3]
[388953545,1759537851744,-500.0,0.00029431,9]
[388953546,1759537851754,-500.0,0.00029431,7]
[388953547,1759537851763,-500.0,0.00029431,9]
[388953548,1759537851773,-500.0,0.00029431,9]
[388953549,1759537851782,-151.0,0.00029432,7]
[388953550,1759537851792,-151.0,0.00029432,7]
[388953551,1759537851812,-151.0,0.00029432,7]